[Event "Early-Titled-Tuesday-Blitz-April-23-2024"]
[Site "Chess.com"]
[Date "2024.04.23"]
[Round "1"]
[White "Abund"]
[Black "lcmil"]
[Result "1-0"]
[WhiteElo "2815"]
[BlackElo "2469"]
[TimeControl "180+1"]
[EndTime "8:08:00 PDT"]
[Termination "Abund won on time"]

1. d4 {[%clk 0:03:00.9]} 1... Nf6 {[%clk 0:02:59.6]} 2. c4 {[%clk 0:03:00.2]}
2... g6 {[%clk 0:02:59.8]} 3. Nc3 {[%clk 0:03:00.1]} 3... Bg7 {[%clk 0:03:00.4]}
4. e4 {[%clk 0:03:00.3]} 4... O-O {[%clk 0:03:00.9]} 5. Be2 {[%clk 0:02:59.8]}
5... d6 {[%clk 0:03:00.6]} 6. Bg5 {[%clk 0:02:59.7]} 6... c5 {[%clk 0:02:57.3]}
7. d5 {[%clk 0:02:57.2]} 7... h6 {[%clk 0:02:56.5]} 8. Be3 {[%clk 0:02:56.7]}
8... e6 {[%clk 0:02:56.5]} 9. Qd2 {[%clk 0:02:50.2]} 9... exd5 {[%clk
0:02:51.5]} 10. exd5 {[%clk 0:02:49]} 10... Kh7 {[%clk 0:02:50]} 11. Nf3 {[%clk
0:02:43.1]} 11... Re8 {[%clk 0:02:32.8]} 12. O-O {[%clk 0:02:41.6]} 12... Bf5
{[%clk 0:02:20]} 13. Rae1 {[%clk 0:02:26.4]} 13... a6 {[%clk 0:02:18.8]} 14. Bd3
{[%clk 0:02:12.2]} 14... Bxd3 {[%clk 0:01:49.7]} 15. Qxd3 {[%clk 0:02:12]} 15...
Nbd7 {[%clk 0:01:47.1]} 16. Bf4 {[%clk 0:02:09.1]} 16... Qc7 {[%clk 0:01:44]}
17. h3 {[%clk 0:02:03.6]} 17... Nh5 {[%clk 0:01:31.1]} 18. Bh2 {[%clk
0:02:01.5]} 18... b5 {[%clk 0:01:14.2]} 19. Rxe8 {[%clk 0:01:45.9]} 19... Rxe8
{[%clk 0:01:13]} 20. cxb5 {[%clk 0:01:46.1]} 20... c4 {[%clk 0:01:02.7]} 21. Qc2
{[%clk 0:01:45.1]} 21... axb5 {[%clk 0:00:44.8]} 22. Nxb5 {[%clk 0:01:42.1]}
22... Qc5 {[%clk 0:00:45.1]} 23. Nxd6 {[%clk 0:01:38.3]} 23... Ra8 {[%clk
0:00:45.2]} 24. Qxc4 {[%clk 0:01:12.7]} 24... Bxb2 {[%clk 0:00:25.2]} 25. Qb3
{[%clk 0:01:03.9]} 25... Qa3 {[%clk 0:00:14.5]} 26. Nxf7 {[%clk 0:00:57.4]}
26... Qxa2 {[%clk 0:00:11.9]} 27. Qb7 {[%clk 0:00:53.4]} 27... Ra7 {[%clk
0:00:11.4]} 28. Qc6 {[%clk 0:00:48.5]} 28... Nhf6 {[%clk 0:00:11.2]} 29. N7e5
{[%clk 0:00:42.1]} 29... Qxd5 {[%clk 0:00:10.6]} 30. Qxd5 {[%clk 0:00:37.7]}
30... Nxd5 {[%clk 0:00:11.5]} 31. Nxd7 {[%clk 0:00:34.3]} 31... Rxd7 {[%clk
0:00:11]} 32. Rd1 {[%clk 0:00:35]} 32... Nf6 {[%clk 0:00:10.9]} 33. Rb1 {[%clk
0:00:35]} 33... Bc3 {[%clk 0:00:10.1]} 34. Bf4 {[%clk 0:00:34.7]} 34... Ne4
{[%clk 0:00:09.8]} 35. Be3 {[%clk 0:00:33.1]} 35... Bg7 {[%clk 0:00:07.7]} 36.
Rb6 {[%clk 0:00:32.4]} 36... g5 {[%clk 0:00:07.2]} 37. g4 {[%clk 0:00:30.4]}
37... Rf7 {[%clk 0:00:06.4]} 38. Kg2 {[%clk 0:00:30.4]} 38... Rd7 {[%clk
0:00:06.4]} 39. Re6 {[%clk 0:00:30.3]} 39... Nc3 {[%clk 0:00:06.6]} 40. h4
{[%clk 0:00:27]} 40... gxh4 {[%clk 0:00:06.3]} 41. Nxh4 {[%clk 0:00:27.9]} 41...
Nd1 {[%clk 0:00:06.8]} 42. Bb6 {[%clk 0:00:19.9]} 42... Rd2 {[%clk 0:00:04.9]}
43. Nf5 {[%clk 0:00:19.7]} 43... Bf8 {[%clk 0:00:05.2]} 44. Rf6 {[%clk
0:00:17.4]} 44... Kg8 {[%clk 0:00:04.1]} 45. Nxh6+ {[%clk 0:00:16.1]} 45... Bxh6
{[%clk 0:00:04.6]} 46. Rxh6 {[%clk 0:00:16.8]} 46... Rd5 {[%clk 0:00:03.4]} 47.
Rf6 {[%clk 0:00:15.5]} 47... Nc3 {[%clk 0:00:03.2]} 48. Be3 {[%clk 0:00:14.9]}
48... Ne4 {[%clk 0:00:03.2]} 49. Rf4 {[%clk 0:00:15.2]} 49... Nd6 {[%clk
0:00:03.4]} 50. Kg3 {[%clk 0:00:15.4]} 50... Nf7 {[%clk 0:00:03.9]} 51. f3
{[%clk 0:00:14.7]} 51... Ne5 {[%clk 0:00:04]} 52. Rf5 {[%clk 0:00:14.9]} 1-0

[Event "Early-Titled-Tuesday-Blitz-April-23-2024"]
[Site "Chess.com"]
[Date "2024.04.23"]
[Round "1"]
[White "aa175"]
[Black "thesupera12"]
[Result "1-0"]
[WhiteElo "2759"]
[BlackElo "2437"]
[TimeControl "180+1"]
[EndTime "8:08:00 PDT"]
[Termination "aa175 won by resignation"]

1. d4 {[%clk 0:02:58.9]} 1... e6 {[%clk 0:02:57.4]} 2. Bf4 {[%clk 0:02:57.8]}
2... c5 {[%clk 0:02:55.9]} 3. e3 {[%clk 0:02:57.9]} 3... Nf6 {[%clk 0:02:55.7]}
4. Nf3 {[%clk 0:02:57.7]} 4... Nc6 {[%clk 0:02:55.2]} 5. Nbd2 {[%clk 0:02:57]}
5... Be7 {[%clk 0:02:53.9]} 6. c3 {[%clk 0:02:55.2]} 6... O-O {[%clk 0:02:54.3]}
7. Bd3 {[%clk 0:02:54.2]} 7... Nh5 {[%clk 0:02:53.7]} 8. Bg3 {[%clk 0:02:37.3]}
8... f5 {[%clk 0:02:43]} 9. Ne5 {[%clk 0:02:33.2]} 9... Nxg3 {[%clk 0:02:31.1]}
10. hxg3 {[%clk 0:02:34.1]} 10... Nxe5 {[%clk 0:02:30.7]} 11. dxe5 {[%clk
0:02:33.1]} 11... g6 {[%clk 0:02:27.6]} 12. Qa4 {[%clk 0:02:31.4]} 12... d5
{[%clk 0:01:59.9]} 13. exd6 {[%clk 0:02:32.3]} 13... Qxd6 {[%clk 0:01:59.1]} 14.
Be2 {[%clk 0:02:23.7]} 14... Bd7 {[%clk 0:01:58.7]} 15. Qf4 {[%clk 0:02:20.6]}
15... Bc6 {[%clk 0:01:56.8]} 16. Bf3 {[%clk 0:02:16.4]} 16... Qxf4 {[%clk
0:01:54.2]} 17. gxf4 {[%clk 0:02:15.8]} 17... Bxf3 {[%clk 0:01:49.8]} 18. Nxf3
{[%clk 0:02:14.7]} 18... Bf6 {[%clk 0:01:49.8]} 19. Ke2 {[%clk 0:02:14.5]} 19...
Rfd8 {[%clk 0:01:50.1]} 20. Rad1 {[%clk 0:02:14.2]} 20... h5 {[%clk 0:01:49.7]}
21. g3 {[%clk 0:02:13.6]} 21... Kf7 {[%clk 0:01:49.2]} 22. a4 {[%clk 0:02:11.8]}
22... b6 {[%clk 0:01:47.2]} 23. Rxd8 {[%clk 0:02:09.3]} 23... Rxd8 {[%clk
0:01:46.8]} 24. Ra1 {[%clk 0:02:09.7]} 24... a6 {[%clk 0:01:38.2]} 25. Nd2
{[%clk 0:01:56.3]} 25... Rd7 {[%clk 0:01:25.8]} 26. Nc4 {[%clk 0:01:50.6]} 26...
b5 {[%clk 0:01:20.5]} 27. axb5 {[%clk 0:01:51.5]} 27... axb5 {[%clk 0:01:21.1]}
28. Ne5+ {[%clk 0:01:49.1]} 28... Bxe5 {[%clk 0:01:21]} 29. fxe5 {[%clk
0:01:50]} 29... b4 {[%clk 0:00:59.2]} 30. c4 {[%clk 0:01:45.1]} 30... Rc7 {[%clk
0:00:56.7]} 31. Kf3 {[%clk 0:01:44.2]} 31... g5 {[%clk 0:00:56]} 32. Ra8 {[%clk
0:01:43.4]} 32... Kg7 {[%clk 0:00:55.6]} 33. Re8 {[%clk 0:01:42.9]} 33... Kf7
{[%clk 0:00:55.4]} 34. Rh8 {[%clk 0:01:43.1]} 34... Kg6 {[%clk 0:00:55.1]} 35.
Rf8 {[%clk 0:01:43.3]} 35... Ra7 {[%clk 0:00:48.7]} 36. Rc8 {[%clk 0:01:41.3]}
36... Ra2 {[%clk 0:00:47.8]} 37. Rxc5 {[%clk 0:01:38.8]} 37... Rxb2 {[%clk
0:00:47.5]} 38. Rc6 {[%clk 0:01:39.1]} 38... Kf7 {[%clk 0:00:45.2]} 39. Rc7+
{[%clk 0:01:40]} 39... Kf8 {[%clk 0:00:38.8]} 40. c5 {[%clk 0:01:35.8]} 40...
g4+ {[%clk 0:00:37.7]} 41. Kf4 {[%clk 0:01:35.4]} 41... Rxf2+ {[%clk 0:00:37.5]}
42. Kg5 {[%clk 0:01:35.7]} 42... Rc2 {[%clk 0:00:34.4]} 43. Kf6 {[%clk
0:01:35.2]} 43... Kg8 {[%clk 0:00:32.9]} 44. c6 {[%clk 0:01:31.2]} 44... b3
{[%clk 0:00:33.2]} 45. Rg7+ {[%clk 0:01:19.4]} 45... Kh8 {[%clk 0:00:32.2]} 46.
Rd7 {[%clk 0:00:57.2]} 46... Rxc6 {[%clk 0:00:31]} 47. Rb7 {[%clk 0:00:56.5]}
47... Rc3 {[%clk 0:00:29.3]} 48. Kg6 {[%clk 0:00:55.7]} 48... Rc8 {[%clk
0:00:23.8]} 49. Kxh5 {[%clk 0:00:56.2]} 49... b2 {[%clk 0:00:19.2]} 50. Kg6
{[%clk 0:00:54.4]} 50... Rg8+ {[%clk 0:00:15.6]} 51. Kf6 {[%clk 0:00:49.2]}
51... Rg7 {[%clk 0:00:13.2]} 52. Rxb2 {[%clk 0:00:47.1]} 52... Kh7 {[%clk
0:00:12.6]} 53. Rh2+ {[%clk 0:00:42.1]} 53... Kg8 {[%clk 0:00:12.4]} 54. Kxe6
{[%clk 0:00:43]} 54... Rg5 {[%clk 0:00:10.6]} 55. Kf6 {[%clk 0:00:42.2]} 55...
Rg7 {[%clk 0:00:07.2]} 56. e6 {[%clk 0:00:41.8]} 56... Ra7 {[%clk 0:00:04.2]}
57. Rc2 {[%clk 0:00:38.3]} 57... Ra6 {[%clk 0:00:03.5]} 58. Rc8+ {[%clk
0:00:38.3]} 58... Kh7 {[%clk 0:00:03.7]} 59. Rc7+ {[%clk 0:00:38.5]} 59... Kh6
{[%clk 0:00:03.7]} 60. Kxf5 {[%clk 0:00:38.5]} 60... Ra5+ {[%clk 0:00:03.5]} 61.
Kf6 {[%clk 0:00:39]} 61... Ra6 {[%clk 0:00:03.5]} 62. Rc8 {[%clk 0:00:38.2]}
62... Kh7 {[%clk 0:00:02.6]} 63. Kf7 {[%clk 0:00:38.7]} 63... Ra1 {[%clk
0:00:02.4]} 64. e7 {[%clk 0:00:39]} 64... Rf1+ {[%clk 0:00:03.3]} 65. Ke6 {[%clk
0:00:39.4]} 65... Rf8 {[%clk 0:00:02.6]} 66. exf8=Q {[%clk 0:00:38.1]} 1-0

[Event "Early-Titled-Tuesday-Blitz-April-23-2024"]
[Site "Chess.com"]
[Date "2024.04.23"]
[Round "1"]
[White "Larina_Maria"]
[Black "Alexchess1984"]
[Result "1-0"]
[WhiteElo "2348"]
[BlackElo "2630"]
[TimeControl "180+1"]
[EndTime "8:08:01 PDT"]
[Termination "Larina_Maria won on time"]

1. e4 {[%clk 0:03:00.9]} 1... c5 {[%clk 0:02:59.2]} 2. Nc3 {[%clk 0:03:00.5]}
2... g6 {[%clk 0:02:58.9]} 3. g3 {[%clk 0:02:57.7]} 3... Bg7 {[%clk 0:02:58.5]}
4. Bg2 {[%clk 0:02:58.4]} 4... Nc6 {[%clk 0:02:58.5]} 5. Nge2 {[%clk 0:02:57.5]}
5... Rb8 {[%clk 0:02:57.6]} 6. a4 {[%clk 0:02:52.4]} 6... a6 {[%clk 0:02:56.9]}
7. O-O {[%clk 0:02:52.1]} 7... d6 {[%clk 0:02:56.1]} 8. d3 {[%clk 0:02:48.5]}
8... b5 {[%clk 0:02:53.1]} 9. axb5 {[%clk 0:02:49.4]} 9... axb5 {[%clk
0:02:53.4]} 10. Be3 {[%clk 0:02:41.1]} 10... b4 {[%clk 0:02:46.4]} 11. Na4
{[%clk 0:02:40.7]} 11... Nd4 {[%clk 0:02:33.2]} 12. Nxd4 {[%clk 0:02:22.5]}
12... cxd4 {[%clk 0:02:31.6]} 13. Bd2 {[%clk 0:02:22.5]} 13... Nf6 {[%clk
0:02:26.1]} 14. c3 {[%clk 0:02:22.3]} 14... bxc3 {[%clk 0:02:09.2]} 15. bxc3
{[%clk 0:02:23.2]} 15... dxc3 {[%clk 0:02:06.1]} 16. Bxc3 {[%clk 0:02:23.4]}
16... O-O {[%clk 0:02:06.3]} 17. Qd2 {[%clk 0:02:16.7]} 17... Bd7 {[%clk
0:01:59]} 18. Nb2 {[%clk 0:02:15.4]} 18... Be6 {[%clk 0:01:51.9]} 19. d4 {[%clk
0:02:08.8]} 19... d5 {[%clk 0:01:48.1]} 20. f3 {[%clk 0:01:58.4]} 20... Qb6
{[%clk 0:01:25.3]} 21. Na4 {[%clk 0:01:52.4]} 21... Qc6 {[%clk 0:01:18.6]} 22.
Nc5 {[%clk 0:01:47.1]} 22... Nd7 {[%clk 0:01:15]} 23. Ra6 {[%clk 0:01:38.9]}
23... Rb6 {[%clk 0:01:14.7]} 24. Ra5 {[%clk 0:01:27.4]} 24... Nxc5 {[%clk
0:01:12.2]} 25. dxc5 {[%clk 0:01:17.9]} 25... Bxc3 {[%clk 0:00:59.8]} 26. Qxc3
{[%clk 0:01:18.8]} 26... Rb5 {[%clk 0:00:49.3]} 27. Rxb5 {[%clk 0:01:18.6]}
27... Qxb5 {[%clk 0:00:49]} 28. f4 {[%clk 0:01:11.6]} 28... Rc8 {[%clk
0:00:42.9]} 29. Rc1 {[%clk 0:01:08.7]} 29... dxe4 {[%clk 0:00:39.4]} 30. Bxe4
{[%clk 0:01:08.3]} 30... Qe2 {[%clk 0:00:39.1]} 31. Qf3 {[%clk 0:01:02.5]} 31...
Qd2 {[%clk 0:00:32.1]} 32. Qc3 {[%clk 0:00:58.4]} 32... Qe2 {[%clk 0:00:31.2]}
33. Qf3 {[%clk 0:00:57.8]} 33... Qd2 {[%clk 0:00:25]} 34. Qc3 {[%clk 0:00:57.5]}
34... Qxc3 {[%clk 0:00:20]} 35. Rxc3 {[%clk 0:00:57.3]} 35... h5 {[%clk
0:00:20.1]} 36. Kf2 {[%clk 0:00:56]} 36... Kg7 {[%clk 0:00:19.8]} 37. Ke3 {[%clk
0:00:55.9]} 37... Kf6 {[%clk 0:00:19.6]} 38. c6 {[%clk 0:00:53.7]} 38... Bf5
{[%clk 0:00:17.6]} 39. Bf3 {[%clk 0:00:49.6]} 39... Rc7 {[%clk 0:00:16.4]} 40.
Kd4 {[%clk 0:00:49.6]} 40... Rc8 {[%clk 0:00:07.6]} 41. Kc5 {[%clk 0:00:49.5]}
41... e5 {[%clk 0:00:07.8]} 42. Kb6 {[%clk 0:00:47.2]} 42... e4 {[%clk
0:00:07.8]} 43. Be2 {[%clk 0:00:44.7]} 43... Ke7 {[%clk 0:00:07.5]} 44. Ba6
{[%clk 0:00:42.9]} 44... Rb8+ {[%clk 0:00:07.3]} 45. Bb7 {[%clk 0:00:42.3]}
45... Rf8 {[%clk 0:00:06.8]} 46. c7 {[%clk 0:00:42.5]} 46... Kd6 {[%clk
0:00:07.1]} 47. Rc6+ {[%clk 0:00:39.1]} 47... Ke7 {[%clk 0:00:06.5]} 48. c8=Q
{[%clk 0:00:35.6]} 48... Bxc8 {[%clk 0:00:06.8]} 49. Rxc8 {[%clk 0:00:33.3]}
49... Rxc8 {[%clk 0:00:06.6]} 50. Bxc8 {[%clk 0:00:34.2]} 50... Kd6 {[%clk
0:00:05.6]} 51. Ba6 {[%clk 0:00:31.9]} 51... Kd5 {[%clk 0:00:04.9]} 52. Kc7
{[%clk 0:00:27]} 52... e3 {[%clk 0:00:04.3]} 53. Kd7 {[%clk 0:00:26.4]} 53...
Kd4 {[%clk 0:00:04.5]} 54. Ke7 {[%clk 0:00:26.4]} 54... Ke4 {[%clk 0:00:01.7]}
55. Kxf7 {[%clk 0:00:25.5]} 55... Kf5 {[%clk 0:00:01.9]} 56. Bd3+ {[%clk
0:00:24.1]} 56... Kg4 {[%clk 0:00:02.1]} 57. Kxg6 {[%clk 0:00:23.7]} 57... h4
{[%clk 0:00:02.7]} 58. f5 {[%clk 0:00:22.3]} 58... hxg3 {[%clk 0:00:02.3]} 59.
hxg3 {[%clk 0:00:23.2]} 59... e2 {[%clk 0:00:02.9]} 60. Bxe2+ {[%clk 0:00:23.2]}
1-0

[Event "Early-Titled-Tuesday-Blitz-April-23-2024"]
[Site "Chess.com"]
[Date "2024.04.23"]
[Round "1"]
[White "vladislavkovalev"]
[Black "Golubovsky"]
[Result "0-1"]
[WhiteElo "2849"]
[BlackElo "2505"]
[TimeControl "180+1"]
[EndTime "8:08:07 PDT"]
[Termination "Golubovsky won by resignation"]

1. e4 {[%clk 0:03:00.9]} 1... c5 {[%clk 0:02:53.7]} 2. Nf3 {[%clk 0:03:00.9]}
2... d6 {[%clk 0:02:52.9]} 3. Bb5+ {[%clk 0:03:00.6]} 3... Bd7 {[%clk
0:02:49.1]} 4. Bxd7+ {[%clk 0:03:00.4]} 4... Qxd7 {[%clk 0:02:50]} 5. c4 {[%clk
0:03:00.3]} 5... Nf6 {[%clk 0:02:47.9]} 6. Nc3 {[%clk 0:03:00.6]} 6... Nc6
{[%clk 0:02:44.8]} 7. d4 {[%clk 0:03:00.9]} 7... cxd4 {[%clk 0:02:44.4]} 8. Nxd4
{[%clk 0:03:01.8]} 8... g6 {[%clk 0:02:44.1]} 9. f3 {[%clk 0:03:02]} 9... Bg7
{[%clk 0:02:43]} 10. Be3 {[%clk 0:03:02.7]} 10... O-O {[%clk 0:02:42.1]} 11. Rc1
{[%clk 0:03:03.3]} 11... Rfc8 {[%clk 0:02:40.7]} 12. b3 {[%clk 0:03:03.7]} 12...
e6 {[%clk 0:02:21.3]} 13. O-O {[%clk 0:03:02.5]} 13... d5 {[%clk 0:02:08.7]} 14.
cxd5 {[%clk 0:02:32.3]} 14... exd5 {[%clk 0:02:04.5]} 15. exd5 {[%clk
0:02:03.3]} 15... Nb4 {[%clk 0:01:36.7]} 16. Qd2 {[%clk 0:01:51.7]} 16... Nfxd5
{[%clk 0:01:25.3]} 17. Nxd5 {[%clk 0:01:52.6]} 17... Nxd5 {[%clk 0:01:24.8]} 18.
Bf2 {[%clk 0:01:52.2]} 18... Rxc1 {[%clk 0:01:04.2]} 19. Rxc1 {[%clk 0:01:53.1]}
19... Rc8 {[%clk 0:01:04.2]} 20. Rxc8+ {[%clk 0:01:30.4]} 20... Qxc8 {[%clk
0:01:04]} 21. Nb5 {[%clk 0:01:31.3]} 21... Nc3 {[%clk 0:00:42.4]} 22. Nxa7
{[%clk 0:01:27.3]} 22... Qe6 {[%clk 0:00:39]} 23. g3 {[%clk 0:01:09.8]} 23... h5
{[%clk 0:00:37.6]} 24. Qd8+ {[%clk 0:00:42.4]} 24... Kh7 {[%clk 0:00:36.8]} 25.
Nc8 {[%clk 0:00:43.1]} 25... Qe2 {[%clk 0:00:27.2]} 26. Ne7 {[%clk 0:00:07.3]}
26... Nd1 {[%clk 0:00:20.2]} 27. Qg8+ {[%clk 0:00:03.8]} 27... Kh6 {[%clk
0:00:20.1]} 28. Bb6 {[%clk 0:00:03]} 28... Qxe7 {[%clk 0:00:13.5]} 29. Qc8
{[%clk 0:00:02.6]} 29... Qe1+ {[%clk 0:00:12.6]} 30. Kg2 {[%clk 0:00:03.2]}
30... Qe2+ {[%clk 0:00:12.7]} 31. Kg1 {[%clk 0:00:04]} 31... Qxf3 {[%clk
0:00:10.7]} 32. Qd7 {[%clk 0:00:04.2]} 32... Ne3 {[%clk 0:00:09.4]} 33. Bxe3+
{[%clk 0:00:03.6]} 33... Qxe3+ {[%clk 0:00:09.5]} 34. Kg2 {[%clk 0:00:04.5]}
34... Qe2+ {[%clk 0:00:09.1]} 35. Kg1 {[%clk 0:00:04.4]} 35... Qxa2 {[%clk
0:00:07.6]} 36. Qxf7 {[%clk 0:00:04.5]} 36... Qa1+ {[%clk 0:00:06.4]} 37. Kg2
{[%clk 0:00:04.6]} 37... Qb2+ {[%clk 0:00:07]} 38. Kh3 {[%clk 0:00:05.2]} 38...
b5 {[%clk 0:00:05.6]} 39. Qd5 {[%clk 0:00:04.9]} 39... Qe5 {[%clk 0:00:05.8]}
40. Qd3 {[%clk 0:00:04.4]} 40... Qf5+ {[%clk 0:00:05.3]} 41. Qxf5 {[%clk
0:00:03.8]} 41... gxf5 {[%clk 0:00:06.2]} 42. Kg2 {[%clk 0:00:04.4]} 42... Kg5
{[%clk 0:00:06.5]} 43. Kf3 {[%clk 0:00:05.3]} 43... Be5 {[%clk 0:00:05.7]} 44.
h3 {[%clk 0:00:01.4]} 44... h4 {[%clk 0:00:03.9]} 45. gxh4+ {[%clk 0:00:01.9]}
45... Kxh4 {[%clk 0:00:04.6]} 46. Kg2 {[%clk 0:00:02.8]} 46... Bd6 {[%clk
0:00:03.7]} 47. Kf3 {[%clk 0:00:03.7]} 47... Kxh3 {[%clk 0:00:03.9]} 48. Ke3
{[%clk 0:00:03.1]} 48... Kg2 {[%clk 0:00:03]} 49. Kd4 {[%clk 0:00:04]} 49... f4
{[%clk 0:00:03.2]} 50. Kd5 {[%clk 0:00:04.9]} 50... Bb8 {[%clk 0:00:02.5]} 51.
Kc6 {[%clk 0:00:04.9]} 51... f3 {[%clk 0:00:03.4]} 52. Kxb5 {[%clk 0:00:05.8]}
52... f2 {[%clk 0:00:03.3]} 53. b4 {[%clk 0:00:06.7]} 53... f1=Q+ {[%clk
0:00:04.2]} 54. Kc6 {[%clk 0:00:07.6]} 54... Qa6+ {[%clk 0:00:04.2]} 55. Kc5
{[%clk 0:00:08.1]} 55... Ba7+ {[%clk 0:00:04.3]} 56. Kd5 {[%clk 0:00:09]} 56...
Qb5+ {[%clk 0:00:04.6]} 57. Ke6 {[%clk 0:00:09.9]} 57... Qxb4 {[%clk 0:00:05]}
58. Kd7 {[%clk 0:00:10.4]} 58... Qb6 {[%clk 0:00:05.3]} 0-1

[Event "Early-Titled-Tuesday-Blitz-April-23-2024"]
[Site "Chess.com"]
[Date "2024.04.23"]
[Round "1"]
[White "yobdc"]
[Black "x-7171385435"]
[Result "1-0"]
[WhiteElo "2601"]
[BlackElo "2138"]
[TimeControl "180+1"]
[EndTime "8:08:07 PDT"]
[Termination "yobdc won on time"]

1. d4 {[%clk 0:02:58.5]} 1... d5 {[%clk 0:02:56.2]} 2. Nc3 {[%clk 0:02:58.1]}
2... Nf6 {[%clk 0:02:51.3]} 3. Bf4 {[%clk 0:02:58.1]} 3... e6 {[%clk 0:02:49.8]}
4. e3 {[%clk 0:02:57.2]} 4... a6 {[%clk 0:02:49.2]} 5. Nf3 {[%clk 0:02:52.4]}
5... c5 {[%clk 0:02:47.2]} 6. dxc5 {[%clk 0:02:45.3]} 6... Bxc5 {[%clk
0:02:38.6]} 7. Bd3 {[%clk 0:02:44.2]} 7... Nc6 {[%clk 0:02:38.2]} 8. O-O {[%clk
0:02:42.9]} 8... O-O {[%clk 0:02:37]} 9. h3 {[%clk 0:02:40.2]} 9... Bd6 {[%clk
0:02:36.6]} 10. Bxd6 {[%clk 0:02:18.3]} 10... Qxd6 {[%clk 0:02:37.5]} 11. e4
{[%clk 0:02:18.4]} 11... dxe4 {[%clk 0:02:34.9]} 12. Nxe4 {[%clk 0:02:18.2]}
12... Nxe4 {[%clk 0:02:33.6]} 13. Bxe4 {[%clk 0:02:19.1]} 13... Qf4 {[%clk
0:02:28.1]} 14. Bxc6 {[%clk 0:02:13.1]} 14... bxc6 {[%clk 0:02:26.4]} 15. Qd4
{[%clk 0:02:11.2]} 15... Qxd4 {[%clk 0:02:11.1]} 16. Nxd4 {[%clk 0:02:12.1]}
16... Bb7 {[%clk 0:02:02.8]} 17. Nb3 {[%clk 0:02:10.5]} 17... a5 {[%clk
0:02:01.4]} 18. Nc5 {[%clk 0:02:09.4]} 18... Ba6 {[%clk 0:02:00.2]} 19. Rfd1
{[%clk 0:02:08.6]} 19... a4 {[%clk 0:01:28]} 20. b3 {[%clk 0:01:52.4]} 20...
axb3 {[%clk 0:01:26.7]} 21. axb3 {[%clk 0:01:53.3]} 21... Be2 {[%clk 0:01:16.6]}
22. Rxa8 {[%clk 0:01:51.5]} 22... Rxa8 {[%clk 0:01:15.9]} 23. Rd6 {[%clk
0:01:45.7]} 23... g6 {[%clk 0:00:44.6]} 24. f3 {[%clk 0:01:44.1]} 24... Ra1+
{[%clk 0:00:35.6]} 25. Kf2 {[%clk 0:01:43.7]} 25... Bd1 {[%clk 0:00:32.8]} 26.
c4 {[%clk 0:01:20.1]} 26... Rb1 {[%clk 0:00:24.6]} 27. Rd3 {[%clk 0:00:54.8]}
27... Bc2 {[%clk 0:00:17.5]} 28. Rc3 {[%clk 0:00:52.4]} 28... Bd1 {[%clk
0:00:17.3]} 29. Ke3 {[%clk 0:00:41.1]} 29... Kf8 {[%clk 0:00:13.9]} 30. Kd2
{[%clk 0:00:36.2]} 30... Ke7 {[%clk 0:00:06.9]} 31. Rc1 {[%clk 0:00:32.1]} 31...
Rxc1 {[%clk 0:00:06]} 32. Kxc1 {[%clk 0:00:32]} 32... Be2 {[%clk 0:00:06]} 33.
h4 {[%clk 0:00:23.7]} 33... Bf1 {[%clk 0:00:06.5]} 34. g3 {[%clk 0:00:20]} 34...
f5 {[%clk 0:00:06.9]} 35. Kd2 {[%clk 0:00:19.5]} 35... e5 {[%clk 0:00:05.6]} 36.
Ke3 {[%clk 0:00:16.3]} 36... Kd6 {[%clk 0:00:03.9]} 37. Nb7+ {[%clk 0:00:11.2]}
37... Ke6 {[%clk 0:00:03.7]} 38. Na5 {[%clk 0:00:10.9]} 38... h6 {[%clk
0:00:02.2]} 39. b4 {[%clk 0:00:08.5]} 39... g5 {[%clk 0:00:02.9]} 40. hxg5
{[%clk 0:00:08.4]} 40... hxg5 {[%clk 0:00:03.8]} 41. f4 {[%clk 0:00:04.1]} 41...
gxf4+ {[%clk 0:00:03.1]} 42. gxf4 {[%clk 0:00:05]} 42... exf4+ {[%clk
0:00:02.9]} 43. Kxf4 {[%clk 0:00:05.1]} 43... Bd3 {[%clk 0:00:03.1]} 44. Ke3
{[%clk 0:00:05]} 44... Bf1 {[%clk 0:00:01.9]} 45. Kd4 {[%clk 0:00:05.2]} 45...
Kf6 {[%clk 0:00:02]} 46. Nxc6 {[%clk 0:00:05.1]} 46... Kg5 {[%clk 0:00:01.2]}
47. b5 {[%clk 0:00:05.1]} 47... f4 {[%clk 0:00:01.5]} 48. b6 {[%clk 0:00:05.1]}
1-0